[Event "Swedish Championship O65 2022"]
[Site "Uppsala"]
[Date "2022.07.05"]
[Round "4.2"]
[White "Westin, Ake"]
[Black "Gillefalk, Bjorn"]
[Result "0-1"]
[ECO "B23"]
[WhiteElo "1994"]
[BlackElo "2047"]
[Annotator "TA"]
[PlyCount "132"]
[EventDate "2022.07.01"]
[EventType "tourn"]
[EventCountry "SWE"]
[SourceTitle "playchess.com"]
[Source "ChessBase"]
[SourceQuality "1"]
[TimeControl "40/5400+30:1800+30"]

{[%evp 9,132,5,5,13,16,17,30,19,27,20,10,16,29,8,19,5,3,0,0,0,0,-8,-5,-58,-54,-70,-70,-72,-80,-92,-112,-100,-115,-137,-135,-153,-150,-179,-148,-142,-145,-149,-168,-178,-161,-149,-147,-152,-138,-145,-148,-218,-218,-202,-204,-329,-285,-335,-340,-532,-496,-455,-437,-602,-178,-183,-156,-483,-629,-642,-568,-775,-697,-712,-710,-682,-699,-616,-579,-447,-269,-247,-235,-238,-193,-408,-272,-204,-34,-34,-8,-337,-8,-8,-8,-8,-8,-1263,-794,-643,-587,-3701,-3106,-2086,-2086,-1706,-994,-837,-836,-7662,-5158,-2419,-8,-8,-8,-8,0,-29977,-29978,-29976,-29977,-29976,-29977,-29987,-29987]} 1. e4 {[%emt 0:00:04]} c5 {[%emt 0:00:32]} 2. Nc3 {[%emt 0:00:49]} e6 {[%emt 0:02:34]} 3. g3 {[%emt 0:02:07]} d5 {[%emt 0:04:32]} 4. Bg2 {[%emt 0:04:43]} dxe4 {[%emt 0:05:11]} 5. Nxe4 {[%emt 0:00:36]} Be7 {[%emt 0:00:56]} 6. Ne2 {[%emt 0:07:05] B23: Closed Sicilian: Lines without g3.} Nf6 {[%emt 0:02:39]} 7. d4 {[%emt 0:03:11]} Nxe4 {[%emt 0:06:33]} 8. Bxe4 {[%emt 0:02:18] White has an edge.} cxd4 {[%emt 0:13:12]} 9. Qxd4 {[%emt 0:04:09] [#]} O-O $146 {[%emt 0:04:03]} ({Predecessor:} 9... Qxd4 10. Nxd4 O-O 11. Be3 Na6 12. O-O-O Nc5 13. Bg2 Bd7 14. Nb3 Nxb3+ 15. axb3 Bc6 16. Bxc6 bxc6 {1-0 (35) Onischuk,V (2622)-Daggupati,B (2429) Chess.com INT 2021}) 10. Qxd8 {[%emt 0:05:53]} (10. O-O {is interesting.} Nc6 11. Qxd8 Rxd8 12. Be3) 10... Rxd8 {[%emt 0:00:13]} 11. Be3 {[%emt 0:00:42]} Nc6 {[%emt 0:05:35]} 12. O-O {[%emt 0:06:10]} e5 {[%emt 0:01:54]} 13. Nc3 {[%emt 0:04:50]} Be6 {[%emt 0:11:40]} 14. Rfd1 {[%emt 0:03:58]} f5 {[%emt 0:03:07]} 15. Bd5 {[%emt 0:03:49]} Kf7 {[%emt 0:00:37]} 16. Bxe6+ {[%emt 0:02:48]} (16. Bxc6 $11 bxc6 17. Rxd8 Bxd8 18. Rd1) 16... Kxe6 $15 {[%emt 0:00:14]} 17. a3 {[%emt 0:03:16]} g5 {[%emt 0:02:59]} 18. f3 {[%emt 0:03:03]} h5 {[%emt 0:07:28] Against g4} 19. Nb5 {[%emt 0:02:05]} Rxd1+ {[%emt 0:02:36]} 20. Rxd1 {[%emt 0:00:11]} Rc8 {[%emt 0:00:12] Against Nc7+} 21. Rd2 {[%emt 0:06:19]} a6 {[%emt 0:01:51]} 22. Nc3 {[%emt 0:03:12]} Na5 $1 {[%emt 0:00:41]} 23. Rd3 {[%emt 0:01:07]} Nc4 {[%emt 0:00:33]} 24. Bc1 {[%emt 0:00:20]} g4 {[%emt 0:00:26]} 25. Kf1 {[%emt 0:01:44]} gxf3 {[%emt 0:00:58]} 26. Rxf3 {[%emt 0:00:09]} e4 {[%emt 0:00:56]} 27. Rf2 {[%emt 0:00:39]} Bf6 {[%emt 0:03:45]} 28. Ne2 {[%emt 0:01:16] Inhibits Bd4.} Bxb2 {[%emt 0:06:34] Black is more active.} 29. Bxb2 {[%emt 0:01:28]} Nxb2 $17 {[%emt 0:00:03][%mdl 4096] Endgame KRN-KRN} 30. Nd4+ {[%emt 0:01:38]} (30. Nf4+ $17 Ke5 31. Rd2) 30... Ke5 $19 {[%emt 0:00:38]} 31. Nxf5 {[%emt 0:04:57]} Nd1 {[%emt 0:00:40]} 32. Ne7 {[%emt 0:01:59] [#]} (32. Rd2 {was the only defense.}) 32... Rxc2 $3 {[%emt 0:03:26][%mdl 512]} 33. Ng6+ {[%emt 0:01:06]} (33. Re2 Rc3) 33... Kd4 {[%emt 0:00:34]} 34. Rxc2 {[%emt 0:00:40]} (34. Rf7 $142 Ne3+ 35. Ke1) 34... Ne3+ {[%emt 0:00:05]} 35. Ke2 {[%emt 0:00:12] Hoping for Rd2+.} Nxc2 {[%emt 0:00:05] KN-KN} 36. a4 {[%emt 0:00:44]} Ne3 $2 {[%emt 0:01:36]} (36... b5 37. axb5 axb5) 37. Nf4 {[%emt 0:02:15]} Ng4 $1 {[%emt 0:04:15] Strongly threatening ...b5.} 38. h3 $2 {[%emt 0:04:32]} (38. Nxh5 $17 Nxh2 39. a5) 38... Nf6 {[%emt 0:00:04]} 39. a5 {[%emt 0:00:33]} Kc4 {[%emt 0:03:01]} 40. Ne6 {[%emt 0:00:49]} Kb4 {[%emt 0:00:47]} 41. Nd8 {[%emt 0:31:26]} Kxa5 {[%emt 0:30:47]} 42. Nxb7+ {[%emt 0:00:15]} Kb6 {[%emt 0:01:17]} 43. Nd6 {[%emt 0:00:27]} Kc5 {[%emt 0:00:48]} 44. Nb7+ {[%emt 0:03:21]} Kd4 {[%emt 0:01:05]} 45. Na5 {[%emt 0:00:37]} Nd5 {[%emt 0:00:00] ...Nc3+ is the strong threat.} 46. Nb3+ {[%emt 0:00:00]} Ke5 {[%emt 0:00:00]} 47. Nd2 $2 {[%emt 0:00:00]} (47. Kd2) 47... Ne7 {[%emt 0:00:00]} 48. Nb3 {[%emt 0:00:00]} Nf5 $2 {[%emt 0:00:00]} ({Black should play} 48... Kd5 $19 49. Kf2 Kd6) 49. g4 $15 {[%emt 0:00:00]} Ng3+ {[%emt 0:00:00]} 50. Kf2 $2 {[%emt 0:00:00][%mdl 8192]} (50. Ke3 $11 {and White stays safe.}) 50... h4 $2 {[%emt 0:00:00]} (50... Kf4 $19 51. gxh5 e3+ 52. Ke1 Nxh5) 51. Ke3 $1 $11 {[%emt 0:00:00]} Nf1+ {[%emt 0:00:00]} 52. Kf2 $1 {[%emt 0:00:00]} Nh2 {[%emt 0:00:00]} 53. Ke3 {[%emt 0:00:00][%mdl 8192]} (53. Nd2 $11) 53... Nf3 {[%emt 0:00:00]} 54. Nc5 {[%emt 0:00:00]} Ng5 {[%emt 0:00:00] aiming for ...a5.} 55. Nxa6 {[%emt 0:00:00]} Nxh3 {[%emt 0:00:00] And now ...Ng5 would win.} 56. Nc5 {[%emt 0:00:00]} Ng5 {[%emt 0:00:00]} 57. Nd7+ {[%emt 0:00:00]} Kd6 {[%emt 0:00:00]} 58. Nf6 {[%emt 0:00:00]} h3 {[%emt 0:00:00] ( -> ...h2)} 59. Nh5 {[%emt 0:00:00]} Ke5 {[%emt 0:00:00] Threatens to win with ...Nh7.} 60. Ng3 {[%emt 0:03:13] [#]} Ke6 $2 {[%emt 0:00:00]} ({Black should try} 60... Kd5 $1 $19 61. Nf1 Nf3) 61. Kf4 {[%emt 0:02:32]} Kf6 {[%emt 0:01:21]} (61... h2 {seems wilder.} 62. Ke3 Ke5 63. Kf2 Kf4) 62. Nh5+ {[%emt 0:00:40]} Ke6 {[%emt 0:03:04]} 63. Ng7+ $2 {[%emt 0:05:24][%mdl 8192]} (63. Ng3 $11) 63... Kd5 {[%emt 0:00:55] Black mates.} 64. Nf5 {[%emt 0:01:50]} h2 {[%emt 0:00:36]} 65. Ng3 {[%emt 0:00:11] [#]} Kd4 $1 {[%emt 0:01:27]} 66. Nh1 {[%emt 0:00:44] [#]} (66. Kxg5 e3) 66... e3 $1 {[%emt 0:00:50] Weighted Error Value: White=0.64/Black=0.50} 0-1

[Event "Swedish Championship O65 2022"]
[Site "Uppsala"]
[Date "2022.07.05"]
[Round "4.3"]
[White "Bergstrom, Rolf"]
[Black "Franzen Hogberg, Thomas"]
[Result "1/2-1/2"]
[ECO "C02"]
[WhiteElo "2202"]
[BlackElo "1997"]
[Annotator "TA"]
[PlyCount "53"]
[EventDate "2022.07.01"]
[EventType "tourn"]
[EventCountry "SWE"]
[SourceTitle "playchess.com"]
[Source "ChessBase"]
[SourceQuality "1"]
[TimeControl "40/5400+30:1800+30"]

{[%evp 12,53,0,0,0,0,9,-16,-16,-18,-12,-21,0,-23,0,0,0,0,14,0,11,-14,50,20,93,89,85,66,89,89,78,83,81,28,33,0,70,39,25,0,0,0,0,0]} 1. e4 {[%emt 0:00:08]} e6 {[%emt 0:00:25]} 2. d4 {[%emt 0:00:10]} d5 {[%emt 0:00:06]} 3. e5 {[%emt 0:00:06]} c5 {[%emt 0:00:07]} 4. c3 {[%emt 0:00:05]} Nc6 {[%emt 0:00:05]} 5. Nf3 {[%emt 0:00:16]} Qb6 {[%emt 0:00:08]} 6. Na3 {[%emt 0:02:22]} cxd4 {[%emt 0:03:08]} 7. cxd4 {[%emt 0:00:11]} Bb4+ {[%emt 0:00:08] C02: French: Advance Variation.} 8. Bd2 {[%emt 0:00:23]} a6 {[%emt 0:02:40] Prevents Nb5.} 9. Nc2 {[%emt 0:00:33]} Bxd2+ {[%emt 0:06:02]} 10. Qxd2 {[%emt 0:00:14]} Qxb2 {[%emt 0:00:08]} 11. Bd3 {[%emt 0:00:08]} Qb6 {[%emt 0:00:04]} 12. O-O {[%emt 0:00:13]} Nge7 {[%emt 0:06:02] [#]} 13. Qg5 $146 {[%emt 0:03:02] [#] Black must now prevent Rab1.} ({Predecessor:} 13. Rab1 Qd8 14. Qf4 O-O 15. Ng5 Ng6 16. Qg3 h6 17. Nf3 Nce7 18. Nh4 Rb8 19. f4 {1-0 (59) Hitzker,J (1419)-Warneke,P (1236) Pinneberg 2014}) 13... Kf8 {[%emt 0:07:33]} 14. Rab1 {[%emt 0:01:18]} Qc7 {[%emt 0:00:12]} 15. h4 {[%emt 0:09:57]} h6 {[%emt 0:06:29]} 16. Qd2 {[%emt 0:04:34]} f5 {[%emt 0:09:55]} (16... Na5 $11) 17. h5 {[%emt 0:07:28]} (17. exf6 $5 gxf6 18. Nb4 $11) 17... g5 {[%emt 0:01:58]} (17... Qd8 $11 {keeps the balance.}) 18. hxg6 $1 $16 {[%emt 0:00:13] White is more active.} Nxg6 {[%emt 0:00:08]} 19. g3 {[%emt 0:01:10]} Qg7 {[%emt 0:04:23]} 20. Kg2 {[%emt 0:05:33][%mdl 1024] White has strong compensation.} h5 {[%emt 0:11:41][%cal Bh6h5,Bh5h4][%mdl 32]} 21. Rh1 {[%emt 0:01:12]} h4 {[%emt 0:00:06]} 22. Qg5 {[%emt 0:01:59]} ({White should play} 22. Ng5 $16) 22... Rh5 {[%emt 0:00:15]} 23. Qd2 {[%emt 0:24:03]} (23. Qxh5 $2 {is the wrong capture.} Nf4+ 24. Kf1 Nxh5 $19) ({Much weaker is} 23. Qf6+ Qxf6 24. exf6 Kf7 25. Nxh4 Nxh4+ 26. gxh4 b5 $15) 23... Rh8 {[%emt 0:08:34]} 24. Rh3 {[%emt 0:06:42]} hxg3 {[%emt 0:03:46]} 25. Rxh8+ {[%emt 0:01:03]} Nxh8 {[%emt 0:00:14]} 26. fxg3 {[%emt 0:00:08]} Nf7 {[%emt 0:00:41] Prevents Ng5.} 27. a4 {[%emt 0:11:35] Weighted Error Value: White=0.16 (very precise) /Black=0.17 (very precise)} 1/2-1/2

[Event "Swedish Championship O65 2022"]
[Site "Uppsala"]
[Date "2022.07.05"]
[Round "4.4"]
[White "Bergstrom, Rolf"]
[Black "Franzen Hogberg, Thomas"]
[Result "*"]
[WhiteElo "2202"]
[BlackElo "1997"]
[Annotator "TA"]
[PlyCount "32"]
[EventDate "2022.07.01"]
[EventType "tourn"]
[EventCountry "SWE"]
[SourceTitle "playchess.com"]
[Source "ChessBase"]
[SourceQuality "1"]
[TimeControl "40/5400+30:1800+30"]

{[%evp 9,10,0,0]} 1. e4 {[%emt 0:00:08]} e6 {[%emt 0:00:25]} 2. d4 {[%emt 0:00:10]} d5 {[%emt 0:00:06]} 3. e5 {[%emt 0:00:06]} c5 {[%emt 0:00:07]} 4. c3 {[%emt 0:00:05]} Nc6 {[%emt 0:00:05]} 5. Nf3 {[%emt 0:00:15]} Qb6 {[%emt 0:00:08] [#]} {Predecessor:} 6. a3 $146 {C02: French: Advance Variation.} c4 7. Nbd2 Na5 8. Rb1 Bd7 9. b4 cxb3 10. Nxb3 Ba4 11. Nxa5 Bxd1 12. Rxb6 axb6 13. Bb5+ Ke7 14. Kxd1 bxa5 15. a4 f6 16. g4 Kf7 {½-½ (51) Anand,V (2751)-Duda,J (2750) Warsaw 2022} *

[Event "Swedish Championship O65 2022"]
[Site "Uppsala"]
[Date "2022.07.05"]
[Round "4.4"]
[White "Carlsson, Ingvar"]
[Black "Marttala, Thomas"]
[Result "1/2-1/2"]
[ECO "B26"]
[WhiteElo "2030"]
[BlackElo "2164"]
[Annotator "TA"]
[PlyCount "65"]
[EventDate "2022.07.01"]
[EventType "tourn"]
[EventCountry "SWE"]
[SourceTitle "playchess.com"]
[Source "ChessBase"]
[SourceQuality "1"]
[TimeControl "40/5400+30:1800+30"]

{[%evp 14,65,-6,-8,0,5,2,3,24,-20,-16,-13,-29,-16,0,0,0,-6,19,0,35,33,43,37,51,13,32,0,0,0,20,0,0,0,10,0,0,0,0,0,0,0,0,0,0,0,0,0,0,0,0,0,0,0]} 1. e4 {[%emt 0:00:16]} c5 {[%emt 0:01:32]} 2. Nc3 {[%emt 0:00:18]} Nc6 {[%emt 0:00:08]} 3. g3 {[%emt 0:00:39]} g6 {[%emt 0:00:47]} 4. Bg2 {[%emt 0:00:20]} Bg7 {[%emt 0:00:06]} 5. d3 {[%emt 0:00:25]} d6 {[%emt 0:02:36]} 6. Be3 {[%emt 0:01:34]} Rb8 {[%emt 0:03:39]} 7. Qd2 {[%emt 0:00:39]} b5 {[%emt 0:01:14]} 8. a3 {[%emt 0:00:50]} a5 {[%emt 0:00:27] B26: Closed Sicilian: 3 g3, lines with early Be3.} 9. Nge2 {[%emt 0:06:10]} Nd4 {[%emt 0:10:04]} 10. O-O {[%emt 0:24:49]} e6 {[%emt 0:19:33] [#]} 11. Rac1 $146 {[%emt 0:11:17][%cal Ob2b4]} ({Predecessor:} 11. Nd1 Nxe2+ 12. Qxe2 Ne7 13. Qd2 Nc6 14. Bh6 O-O 15. Bxg7 Kxg7 16. Ne3 e5 17. f4 {½-½ (58) Mascellani,M (2301)-Mrdja,M (2406) Pianoro 2011}) 11... b4 {[%emt 0:05:37]} 12. axb4 {[%emt 0:00:13]} axb4 {[%emt 0:00:13]} 13. Nd1 {[%emt 0:00:34]} Nxe2+ {[%emt 0:12:21]} 14. Qxe2 {[%emt 0:00:10]} Ne7 {[%emt 0:00:15][%cal Bg8e7,Be7c6,Bc6d4,Bd4b5][%mdl 32]} 15. Qd2 {[%emt 0:01:15]} O-O {[%emt 0:02:02]} 16. Bh6 {[%emt 0:00:35]} Nc6 {[%emt 0:04:01]} 17. Bxg7 {[%emt 0:01:14]} Kxg7 {[%emt 0:00:07]} 18. Ne3 {[%emt 0:00:46]} Nd4 {[%emt 0:04:37][%cal Od6d5]} 19. Ra1 {[%emt 0:05:03]} ({Much weaker is} 19. Ng4 f5 20. Ne3 f4 21. gxf4 Rxf4 $15) 19... Bb7 {[%emt 0:05:35]} (19... d5 $5) 20. Ra7 {[%emt 0:04:11]} ({But not} 20. Ng4 f5 21. Qh6+ Kg8 $15) 20... Nb5 {[%emt 0:01:02] The position is equal.} 21. Ra4 {[%emt 0:06:53]} Ra8 {[%emt 0:03:28]} 22. Rfa1 {[%emt 0:00:14]} (22. Raa1 {seems wilder.} d5 23. Ng4 dxe4 24. Qh6+) 22... Rxa4 {[%emt 0:01:38]} 23. Rxa4 {[%emt 0:00:13]} h5 {[%emt 0:00:58]} 24. h4 {[%emt 0:03:41]} Qe7 {[%emt 0:03:50]} 25. c3 {[%emt 0:02:37]} bxc3 {[%emt 0:01:12]} 26. bxc3 {[%emt 0:00:10]} Ra8 {[%emt 0:00:26]} 27. Rxa8 {[%emt 0:01:11]} Bxa8 {[%emt 0:00:13]} 28. Qb2 {[%emt 0:07:20]} Bc6 {[%emt 0:07:16]} 29. d4 {[%emt 0:12:48]} cxd4 {[%emt 0:04:02]} 30. cxd4 {[%emt 0:00:03] [#] Threatens to win with d5+.} e5 {[%emt 0:00:19]} 31. dxe5 {[%emt 0:00:40]} Qxe5 {[%emt 0:00:56]} 32. Qxe5+ {[%emt 0:00:09]} dxe5 {[%emt 0:00:10]} 33. f3 {[%emt 0:01:00] Weighted Error Value: White=0.06 (flawless) /Black=0.08 (flawless)} 1/2-1/2

[Event "Swedish Championship O65 2022"]
[Site "Uppsala"]
[Date "2022.07.06"]
[Round "5.1"]
[White "Gillefalk, Bjorn"]
[Black "Dolata, Henryk"]
[Result "1-0"]
[ECO "C02"]
[WhiteElo "2047"]
[BlackElo "2055"]
[Annotator "TA"]
[PlyCount "67"]
[EventDate "2022.07.01"]
[EventType "tourn"]
[EventCountry "SWE"]
[SourceTitle "playchess.com"]
[Source "ChessBase"]
[SourceQuality "1"]
[TimeControl "40/5400+30:1800+30"]

{[%evp 9,67,38,44,22,56,33,34,0,26,-11,15,7,3,-33,-24,-80,-33,-47,-27,-41,-28,-38,0,-60,-63,-60,-36,-75,-32,-26,-21,-20,-10,-14,-25,-81,-68,-69,-58,-166,-186,-179,-185,-175,-183,-191,-66,-949,-398,-481,-184,-663,550,539,670,639,1402,1388,1362,1337]} 1. e4 {[%emt 0:00:30]} e6 {[%emt 0:00:19]} 2. d4 {[%emt 0:00:08]} d5 {[%emt 0:00:08]} 3. e5 {[%emt 0:00:08]} b6 {[%emt 0:00:34]} 4. c3 {[%emt 0:07:36]} Qd7 {[%emt 0:02:06]} 5. Nf3 {[%emt 0:05:46]} Ne7 {[%emt 0:01:55]} 6. h4 {[%emt 0:01:57] C02: French: Advance Variation.} h5 {[%emt 0:02:48] [#]} 7. Nbd2 $146 {[%emt 0:05:21]} ({Predecessor:} 7. Bd3 Ba6 8. O-O Bxd3 9. Qxd3 Nf5 10. Bg5 Be7 11. Nbd2 Bxg5 12. hxg5 Nc6 13. a4 a5 {1-0 (65) Visakh,N (2516)-Papasimakopoulos,A (2251) Chess.com INT 2021}) 7... c5 {[%emt 0:29:18]} 8. Rh3 {[%emt 0:13:08] White is slightly better.} (8. Nb3 $5 {[%cal Rd4c5]}) 8... cxd4 {[%emt 0:06:25]} 9. cxd4 {[%emt 0:12:13]} Ba6 {[%emt 0:08:37]} 10. Bxa6 {[%emt 0:05:28]} Nxa6 {[%emt 0:00:33][%cal Bb8a6,Ba6b4,Bb4c6,Bc6a5,Ba5c4][%mdl 32]} 11. Qe2 {[%emt 0:02:03]} Nb4 {[%emt 0:01:12] [#] Strongly threatening ...Nc2+.} 12. Kf1 {[%emt 0:00:38]} (12. Nb1 $1 $11) 12... Nf5 {[%emt 0:00:27]} (12... Rc8 $17) 13. Nb1 $1 $15 {[%emt 0:02:32]} Be7 {[%emt 0:06:28]} 14. Nc3 {[%emt 0:00:37]} Rc8 {[%emt 0:01:09]} 15. Bg5 {[%emt 0:02:35]} Rc4 {[%emt 0:08:42]} 16. Rd1 {[%emt 0:03:39]} (16. Qd2 $11) 16... Nc6 {[%emt 0:13:43]} 17. Be3 {[%emt 0:05:15]} g6 {[%emt 0:00:59]} 18. Qd2 {[%emt 0:03:01]} Na5 {[%emt 0:00:39]} 19. Bg5 {[%emt 0:00:48]} Rc7 {[%emt 0:00:32]} 20. Bxe7 {[%emt 0:00:31] Black must now prevent Bf6.} Qxe7 {[%emt 0:01:20]} 21. Nb5 {[%emt 0:08:01]} Rc8 {[%emt 0:00:05] And now ...Nc4 would win.} 22. Ng5 {[%emt 0:01:32]} (22. b3 $11) 22... Nc4 {[%emt 0:01:20]} 23. Qe2 {[%emt 0:01:31]} a6 {[%emt 0:00:54]} 24. Nd6+ {[%emt 0:00:56]} ({White should try} 24. Nc3 $15) 24... Ncxd6 $19 {[%emt 0:01:31]} ({Not} 24... Nfxd6 25. exd6 Nxd6 26. Qxa6 $17) 25. exd6 {[%emt 0:00:09]} Qxd6 {[%emt 0:00:34]} 26. Qxa6 {[%emt 0:00:50]} O-O {[%emt 0:00:22]} 27. Rb3 {[%emt 0:03:30]} Rc2 {[%emt 0:01:18]} (27... Qh2 $19 {aiming for ...Qh1+.} 28. Rh3 Qf4) 28. Qxb6 $2 {[%emt 0:00:59][%mdl 8192] [#]} (28. g3 $15) 28... Qf4 {[%emt 0:00:05]} (28... Ne3+ $142 $1 {[%mdl 512]} 29. Kg1 Qxb6 30. Rxb6 Nxd1) 29. Nf3 {[%emt 0:02:12]} Rfc8 $2 {[%emt 0:02:21]} ({Worse is} 29... Qe4 30. Re1 Qg4 31. Rc3 Rxc3 32. bxc3 $17) (29... Qg4 30. Rc3 Rxc3 31. bxc3 Nxh4) 30. Qb5 $2 {[%emt 0:04:27]} (30. Qb4) 30... Rxf2+ $4 {[%emt 0:06:29][%mdl 8192]} 31. Kxf2 $18 {[%emt 0:00:31] White is clearly winning.} Rc2+ {[%emt 0:00:01]} 32. Kg1 {[%emt 0:01:48]} Nxh4 {[%emt 0:00:37]} 33. Qb8+ {[%emt 0:00:16]} Qxb8 {[%emt 0:00:09]} 34. Rxb8+ {[%emt 0:00:02] What a bad dream for Black.  Weighted Error Value: White=0.79/Black=0.85} 1-0

[Event "Swedish Championship O65 2022"]
[Site "Uppsala"]
[Date "2022.07.06"]
[Round "5.2"]
[White "Soderberg, Per"]
[Black "Lagerborg, Krister"]
[Result "0-1"]
[ECO "B51"]
[WhiteElo "2111"]
[BlackElo "2138"]
[Annotator "TA"]
[PlyCount "62"]
[EventDate "2022.07.01"]
[EventType "tourn"]
[EventCountry "SWE"]
[SourceTitle "playchess.com"]
[Source "ChessBase"]
[SourceQuality "1"]
[TimeControl "40/5400+30:1800+30"]

{[%evp 10,62,2,-12,5,0,0,0,0,0,18,0,0,-2,-8,0,-2,-42,-32,-32,-34,-94,-78,-191,-193,-282,-278,-320,-328,-364,-354,-331,-334,-382,-385,-395,-372,-422,-337,-503,-480,-482,-501,-656,-654,-830,-812,-1081,-1053,-1514,-1438,-29978,-2129,-29976,-1991]} 1. e4 {[%emt 0:00:03]} c5 {[%emt 0:00:05]} 2. Nf3 {[%emt 0:00:08]} d6 {[%emt 0:00:08]} 3. Bb5+ {[%emt 0:00:10]} Nd7 {[%emt 0:00:08]} 4. O-O {[%emt 0:00:11]} a6 {[%emt 0:00:06]} 5. Bxd7+ {[%emt 0:01:32]} Bxd7 {[%emt 0:00:10]} 6. c3 {[%emt 0:01:33]} e6 {[%emt 0:03:10] B51: Sicilian: Moscow Variation (3 Bb5+) without 3...Bd7.} 7. Re1 {[%emt 0:01:21]} Ne7 {[%emt 0:01:00]} 8. d4 {[%emt 0:02:20]} Ng6 {[%emt 0:02:54] [#] The position is equal.} 9. a4 $146 {[%emt 0:05:41]} ({Predecessor:} 9. Bg5 Qc7 10. Nh4 Rc8 11. d5 e5 12. Nd2 Be7 13. Qh5 Bxg5 14. Qxg5 Nxh4 15. Qxh4 {½-½ (30) Wang,C (2491)-Zhou,W (2628) Beijing 2012}) 9... b5 {[%emt 0:02:10]} 10. axb5 {[%emt 0:00:32]} axb5 {[%emt 0:00:07]} 11. Rxa8 {[%emt 0:00:56]} Qxa8 {[%emt 0:00:08]} 12. Na3 {[%emt 0:00:56]} Be7 {[%emt 0:01:42][%cal Bf8e7,Be7d6,Bd6b8][%mdl 32] Against h4} 13. e5 {[%emt 0:10:53]} Bc6 {[%emt 0:08:12]} 14. d5 {[%emt 0:07:36]} Bxd5 {[%emt 0:08:21]} 15. exd6 {[%emt 0:00:49]} ({White should try} 15. Nxb5 $15 Qc6 16. exd6 (16. Nxd6+ Bxd6 17. exd6 Bxf3 $11) 16... Qxb5 17. dxe7) 15... Bxd6 $17 {[%emt 0:08:18] White is on the road to losing.} 16. c4 {[%emt 0:10:50]} (16. Nxb5 $17 {was called for.} Bb8 17. Be3) 16... bxc4 $19 {[%emt 0:01:47]} 17. Nb5 {[%emt 0:05:13]} (17. Nxc4 {might work better.} Bc7 18. Na3) 17... Bb8 {[%emt 0:00:55]} 18. Re3 {[%emt 0:00:49]} O-O {[%emt 0:02:03] And now ...Bf4 would win.} 19. Ne1 {[%emt 0:02:56]} Qb7 {[%emt 0:05:01]} 20. Nc3 {[%emt 0:01:19]} Bc6 {[%emt 0:03:01]} 21. Rh3 {[%emt 0:03:24]} h6 {[%emt 0:02:36]} 22. Qg4 {[%emt 0:02:16]} Bd5 {[%emt 0:03:39]} 23. f4 {[%emt 0:03:27]} Qe7 {[%emt 0:02:21]} 24. Nc2 {[%emt 0:01:34]} (24. Re3 {was necessary.} Nxf4 25. Nxd5 Nxd5 26. Ra3) 24... Qf6 {[%emt 0:02:44][%cal Rg6f4]} 25. Nxd5 {[%emt 0:11:34]} exd5 {[%emt 0:00:21]} 26. f5 {[%emt 0:03:27]} Ne5 {[%emt 0:01:20]} 27. Qh5 {[%emt 0:00:09]} Nd3 {[%emt 0:02:18] Inhibits Ne1.} 28. Bxh6 {[%emt 0:02:09]} Qxh6 {[%emt 0:00:47]} 29. Qd1 {[%emt 0:00:45]} Qf4 {[%emt 0:02:02]} 30. Ne3 {[%emt 0:01:36]} Qf2+ {[%emt 0:01:36]} 31. Kh1 {[%emt 0:00:05] [#]} Qxe3 $3 {[%emt 0:01:18][%mdl 512] Weighted Error Value: White=0.94/Black=0.08 (flawless)} 0-1